[Event "Titled Tuesday Blitz March 07 Early 2023"]
[White "Kozin, Yuri"]
[Black "Pranav, V"]
[WhiteFideId "4129920"]
[BlackFideId "25060783"]
[WhiteElo "2506"]
[BlackElo "2500"]
[Result "0-1"]
[Round "01"]
[TimeControl "180+2"]
[Date "2023.03.07"]
[WhiteClock "0:00:11"]
[BlackClock "0:00:12"]

1. e4 {[%clk 0:02:42]}  c5 {[%clk 0:02:59]} 2. Nf3 {[%clk 0:02:42]}  d6 {[%clk 0:02:59]} 3. d4 {[%clk 0:02:42]}  cxd4 {[%clk 0:02:59]} 4. Nxd4 {[%clk 0:02:43]}  Nf6 {[%clk 0:02:59]} 5. Nc3 {[%clk 0:02:44]}  g6 {[%clk 0:03:00]} 6. Bc4 {[%clk 0:02:43]}  Bg7 {[%clk 0:02:59]} 7. Bb3 {[%clk 0:02:44]}  O-O {[%clk 0:02:58]} 8. h3 {[%clk 0:02:44]}  Nc6 {[%clk 0:02:58]} 9. Be3 {[%clk 0:02:44]}  a6 {[%clk 0:02:56]} 10. O-O {[%clk 0:02:44]}  Bd7 {[%clk 0:02:54]} 11. Re1 {[%clk 0:02:44]}  Rc8 {[%clk 0:02:51]} 12. Qd2 {[%clk 0:02:44]}  b5 {[%clk 0:02:40]} 13. a3 {[%clk 0:02:44]}  Na5 {[%clk 0:02:36]} 14. Bh6 {[%clk 0:02:40]}  Qb6 {[%clk 0:02:19]} 15. Bxg7 {[%clk 0:02:40]}  Kxg7 {[%clk 0:02:20]} 16. Nd5 {[%clk 0:02:35]}  Nxd5 {[%clk 0:02:08]} 17. exd5 {[%clk 0:02:32]}  Rfe8 {[%clk 0:02:08]} 18. Re2 {[%clk 0:02:20]}  Nxb3 {[%clk 0:01:48]} 19. Nxb3 {[%clk 0:02:14]}  e5 {[%clk 0:01:29]} 20. dxe6 {[%clk 0:02:13]}  Bxe6 {[%clk 0:01:28]} 21. Nd4 {[%clk 0:02:09]}  Bd7 {[%clk 0:01:28]} 22. Rxe8 {[%clk 0:02:01]}  Rxe8 {[%clk 0:01:25]} 23. Rd1 {[%clk 0:02:01]}  Bc8 {[%clk 0:01:17]} 24. Nf3 {[%clk 0:01:52]}  Rd8 {[%clk 0:01:16]} 25. Qf4 {[%clk 0:01:34]}  Qc5 {[%clk 0:01:11]} 26. c3 {[%clk 0:01:26]}  Qf5 {[%clk 0:01:10]} 27. Qh4 {[%clk 0:01:23]}  Qf6 {[%clk 0:01:07]} 28. Qg3 {[%clk 0:01:07]}  Bb7 {[%clk 0:01:04]} 29. Ng5 {[%clk 0:01:03]}  h6 {[%clk 0:00:59]} 30. Nf3 {[%clk 0:01:02]}  Bxf3 {[%clk 0:00:59]} 31. Qxf3 {[%clk 0:01:03]}  Qxf3 {[%clk 0:00:59]} 32. gxf3 {[%clk 0:01:04]}  Kf6 {[%clk 0:00:59]} 33. Kg2 {[%clk 0:01:04]}  Ke7 {[%clk 0:00:58]} 34. f4 {[%clk 0:01:04]}  Rc8 {[%clk 0:00:57]} 35. Kf3 {[%clk 0:01:01]}  Rc5 {[%clk 0:00:57]} 36. Rd4 {[%clk 0:00:58]}  Rh5 {[%clk 0:00:57]} 37. Kg3 {[%clk 0:00:54]}  Ke6 {[%clk 0:00:57]} 38. a4 {[%clk 0:00:54]}  Rd5 {[%clk 0:00:44]} 39. Re4+ {[%clk 0:00:52]}  Kf5 {[%clk 0:00:43]} 40. Rb4 {[%clk 0:00:47]}  f6 {[%clk 0:00:39]} 41. f3 {[%clk 0:00:44]}  h5 {[%clk 0:00:32]} 42. Re4 {[%clk 0:00:40]}  a5 {[%clk 0:00:21]} 43. c4 {[%clk 0:00:20]}  bxc4 {[%clk 0:00:19]} 44. Rxc4 {[%clk 0:00:21]}  Rd2 {[%clk 0:00:17]} 45. b4 {[%clk 0:00:21]}  d5 {[%clk 0:00:17]} 46. Rc5 {[%clk 0:00:20]}  axb4 {[%clk 0:00:17]} 47. Rb5 {[%clk 0:00:21]}  Rd4 {[%clk 0:00:12]} 48. a5 {[%clk 0:00:20]}  h4+ {[%clk 0:00:11]} 49. Kxh4 {[%clk 0:00:20]}  Kxf4 {[%clk 0:00:12]} 50. a6 {[%clk 0:00:11]}  Kxf3# {[%clk 0:00:12]} 0-1


[Site "https://www.chess.com"]

[Event "Titled Tuesday Blitz March 07 Early 2023"]
[White "Erzhanov, Arman"]
[Black "Hakobyan, Aram"]
[WhiteFideId "4138821"]
[BlackFideId "13306677"]
[WhiteElo "2138"]
[BlackElo "2563"]
[Result "0-1"]
[Round "01"]
[TimeControl "180+2"]
[Date "2023.03.07"]
[WhiteClock "0:00:02"]
[BlackClock "0:01:24"]

1. e4 {[%clk 0:02:58]}  g6 {[%clk 0:03:00]} 2. d4 {[%clk 0:02:58]}  Bg7 {[%clk 0:03:01]} 3. c3 {[%clk 0:02:58]}  d6 {[%clk 0:02:59]} 4. Nf3 {[%clk 0:02:58]}  Nc6 {[%clk 0:02:59]} 5. Bd3 {[%clk 0:02:58]}  e5 {[%clk 0:03:00]} 6. dxe5 {[%clk 0:02:56]}  Nxe5 {[%clk 0:02:59]} 7. Nxe5 {[%clk 0:02:54]}  Bxe5 {[%clk 0:03:00]} 8. O-O {[%clk 0:02:54]}  Ne7 {[%clk 0:02:59]} 9. Bh6 {[%clk 0:02:53]}  Ng8 {[%clk 0:02:52]} 10. Be3 {[%clk 0:02:50]}  Bg7 {[%clk 0:02:49]} 11. f4 {[%clk 0:02:37]}  Nf6 {[%clk 0:02:49]} 12. e5 {[%clk 0:02:37]}  Ng4 {[%clk 0:02:46]} 13. Bd4 {[%clk 0:02:30]}  dxe5 {[%clk 0:02:15]} 14. fxe5 {[%clk 0:02:14]}  O-O {[%clk 0:02:14]} 15. Qe2 {[%clk 0:01:47]}  Nxe5 {[%clk 0:02:06]} 16. Bxe5 {[%clk 0:01:37]}  Bxe5 {[%clk 0:02:07]} 17. Qxe5 {[%clk 0:01:37]}  Qxd3 {[%clk 0:02:06]} 18. Qxc7 {[%clk 0:01:34]}  Qe3+ {[%clk 0:02:03]} 19. Kh1 {[%clk 0:01:34]}  Qe2 {[%clk 0:01:46]} 20. Na3 {[%clk 0:01:30]}  Qxb2 {[%clk 0:01:46]} 21. Nc4 {[%clk 0:01:22]}  Qxc3 {[%clk 0:01:45]} 22. Rac1 {[%clk 0:01:12]}  Qb4 {[%clk 0:01:31]} 23. Nd6 {[%clk 0:00:58]}  Be6 {[%clk 0:01:31]} 24. Rf2 {[%clk 0:00:29]}  Rad8 {[%clk 0:01:28]} 25. Rd1 {[%clk 0:00:02]}  Rd7 {[%clk 0:01:24]} 0-1


[Site "https://www.chess.com"]

[Event "Titled Tuesday Blitz March 07 Early 2023"]
[White "Matlakov, Maxim"]
[Black "surrenderPLS"]
[WhiteFideId "4168003"]
[WhiteElo "2666"]
[BlackElo "2504"]
[Result "1-0"]
[Round "01"]
[TimeControl "180+2"]
[Date "2023.03.07"]
[WhiteClock "0:01:34"]
[BlackClock "0:00:05"]

1. e4 {[%clk 0:02:56]}  c5 {[%clk 0:02:59]} 2. Nf3 {[%clk 0:02:56]}  d6 {[%clk 0:03:00]} 3. Bb5+ {[%clk 0:02:55]}  Nd7 {[%clk 0:02:59]} 4. O-O {[%clk 0:02:54]}  a6 {[%clk 0:02:55]} 5. Bxd7+ {[%clk 0:02:53]}  Bxd7 {[%clk 0:02:54]} 6. c3 {[%clk 0:02:53]}  g6 {[%clk 0:02:52]} 7. d4 {[%clk 0:02:52]}  cxd4 {[%clk 0:02:53]} 8. cxd4 {[%clk 0:02:52]}  Bg7 {[%clk 0:02:54]} 9. h3 {[%clk 0:02:51]}  Nf6 {[%clk 0:02:53]} 10. Nc3 {[%clk 0:02:51]}  O-O {[%clk 0:02:53]} 11. Re1 {[%clk 0:02:50]}  Bc6 {[%clk 0:02:49]} 12. Bg5 {[%clk 0:02:47]}  h6 {[%clk 0:02:49]} 13. Bh4 {[%clk 0:02:47]}  b5 {[%clk 0:02:48]} 14. a3 {[%clk 0:02:45]}  Rc8 {[%clk 0:02:07]} 15. Rc1 {[%clk 0:02:42]}  Qb6 {[%clk 0:02:05]} 16. Qe2 {[%clk 0:02:27]}  Rfe8 {[%clk 0:00:52]} 17. Rcd1 {[%clk 0:01:55]}  Nh5 {[%clk 0:00:35]} 18. Qe3 {[%clk 0:01:52]}  g5 {[%clk 0:00:29]} 19. Nxg5 {[%clk 0:01:51]}  hxg5 {[%clk 0:00:28]} 20. Qxg5 {[%clk 0:01:52]}  Nf6 {[%clk 0:00:27]} 21. Rd3 {[%clk 0:01:48]}  Nh7 {[%clk 0:00:19]} 22. Qg4 {[%clk 0:01:48]}  Kh8 {[%clk 0:00:19]} 23. Bxe7 {[%clk 0:01:40]}  Rg8 {[%clk 0:00:07]} 24. Qf4 {[%clk 0:01:38]}  Bd7 {[%clk 0:00:05]} 25. Bxd6 {[%clk 0:01:36]}  Bxd4 {[%clk 0:00:05]} 26. Rxd4 {[%clk 0:01:34]} 1-0


[Site "https://www.chess.com"]

[Event "Titled Tuesday Blitz March 07 Early 2023"]
[White "Tabatabaei, M. Amin"]
[Black "TimGrutter03"]
[WhiteFideId "12521213"]
[WhiteElo "2575"]
[BlackElo "2497"]
[Result "1-0"]
[Round "01"]
[TimeControl "180+2"]
[Date "2023.03.07"]
[WhiteClock "0:01:40"]
[BlackClock "0:00:45"]

1. d4 {[%clk 0:02:56]}  Nf6 {[%clk 0:02:59]} 2. c4 {[%clk 0:02:53]}  g6 {[%clk 0:02:57]} 3. Nc3 {[%clk 0:02:53]}  Bg7 {[%clk 0:02:56]} 4. e4 {[%clk 0:02:53]}  d6 {[%clk 0:02:56]} 5. Nf3 {[%clk 0:02:54]}  O-O {[%clk 0:02:54]} 6. Be2 {[%clk 0:02:54]}  e5 {[%clk 0:02:54]} 7. O-O {[%clk 0:02:55]}  exd4 {[%clk 0:02:54]} 8. Nxd4 {[%clk 0:02:56]}  Re8 {[%clk 0:02:54]} 9. f3 {[%clk 0:02:55]}  c6 {[%clk 0:02:54]} 10. Kh1 {[%clk 0:02:52]}  d5 {[%clk 0:02:53]} 11. cxd5 {[%clk 0:02:51]}  cxd5 {[%clk 0:02:53]} 12. Bg5 {[%clk 0:02:41]}  Nc6 {[%clk 0:02:28]} 13. Bb5 {[%clk 0:02:41]}  h6 {[%clk 0:02:04]} 14. Nxc6 {[%clk 0:02:36]}  bxc6 {[%clk 0:02:04]} 15. Bxc6 {[%clk 0:02:36]}  hxg5 {[%clk 0:02:03]} 16. Bxa8 {[%clk 0:02:36]}  Ba6 {[%clk 0:02:03]} 17. Bc6 {[%clk 0:01:57]}  Bxf1 {[%clk 0:01:21]} 18. Bxe8 {[%clk 0:01:56]}  d4 {[%clk 0:01:10]} 19. Bc6 {[%clk 0:01:43]}  Qb6 {[%clk 0:00:51]} 20. Nd5 {[%clk 0:01:43]}  Nxd5 {[%clk 0:00:46]} 21. Bxd5 {[%clk 0:01:43]}  Be2 {[%clk 0:00:45]} 22. Qxe2 {[%clk 0:01:40]} 1-0


[Site "https://www.chess.com"]

[Event "Titled Tuesday Blitz March 07 Early 2023"]
[White "Liu, Yi"]
[Black "Fedoseev, Vladimir"]
[WhiteFideId "3210588"]
[BlackFideId "24130737"]
[WhiteElo "2264"]
[BlackElo "2752"]
[Result "0-1"]
[Round "01"]
[TimeControl "180+2"]
[Date "2023.03.07"]
[WhiteClock "0:00:18"]
[BlackClock "0:00:36"]

1. e4 {[%clk 0:02:59]}  c5 {[%clk 0:02:59]} 2. Nf3 {[%clk 0:02:59]}  d6 {[%clk 0:02:59]} 3. d4 {[%clk 0:03:00]}  cxd4 {[%clk 0:03:00]} 4. Nxd4 {[%clk 0:03:00]}  Nf6 {[%clk 0:03:01]} 5. Nc3 {[%clk 0:03:01]}  a6 {[%clk 0:03:01]} 6. Be3 {[%clk 0:03:00]}  e5 {[%clk 0:03:00]} 7. Nb3 {[%clk 0:03:00]}  Be6 {[%clk 0:02:59]} 8. f3 {[%clk 0:02:58]}  Nbd7 {[%clk 0:02:56]} 9. Qd2 {[%clk 0:02:54]}  h5 {[%clk 0:02:54]} 10. h3 {[%clk 0:02:50]}  Rc8 {[%clk 0:02:47]} 11. O-O-O {[%clk 0:02:35]}  Qc7 {[%clk 0:02:46]} 12. Kb1 {[%clk 0:02:31]}  b5 {[%clk 0:02:27]} 13. Be2 {[%clk 0:02:10]}  Nb6 {[%clk 0:02:22]} 14. Bxb6 {[%clk 0:02:03]}  Qxb6 {[%clk 0:02:22]} 15. g4 {[%clk 0:01:52]}  Be7 {[%clk 0:02:04]} 16. g5 {[%clk 0:01:40]}  Nd7 {[%clk 0:02:03]} 17. h4 {[%clk 0:01:35]}  Qc7 {[%clk 0:01:56]} 18. Rh2 {[%clk 0:01:24]}  Nb6 {[%clk 0:01:54]} 19. f4 {[%clk 0:01:13]}  exf4 {[%clk 0:01:54]} 20. Qxf4 {[%clk 0:01:14]}  g6 {[%clk 0:00:57]} 21. e5 {[%clk 0:01:00]}  dxe5 {[%clk 0:00:52]} 22. Qf2 {[%clk 0:00:45]}  O-O {[%clk 0:00:39]} 23. Bf3 {[%clk 0:00:37]}  Nc4 {[%clk 0:00:36]} 24. Nd2 {[%clk 0:00:32]}  Nxb2 {[%clk 0:00:35]} 25. Kxb2 {[%clk 0:00:19]}  Qxc3+ {[%clk 0:00:34]} 26. Kb1 {[%clk 0:00:20]}  Qxc2+ {[%clk 0:00:35]} 27. Ka1 {[%clk 0:00:18]}  Qxa2# {[%clk 0:00:36]} 0-1


[Site "https://www.chess.com"]

[Event "Titled Tuesday Blitz March 07 Early 2023"]
[White "Bortnyk, Olexandr"]
[Black "Karas, Marek"]
[WhiteFideId "14120828"]
[BlackFideId "14928558"]
[WhiteElo "2734"]
[BlackElo "2233"]
[Result "1-0"]
[Round "01"]
[TimeControl "180+2"]
[Date "2023.03.07"]
[WhiteClock "0:00:10"]
[BlackClock "0:00:01"]

1. d4 {[%clk 0:02:55]}  Nf6 {[%clk 0:02:59]} 2. Nc3 {[%clk 0:02:53]}  e6 {[%clk 0:02:59]} 3. e4 {[%clk 0:02:53]}  d5 {[%clk 0:02:59]} 4. Bg5 {[%clk 0:02:46]}  Be7 {[%clk 0:02:58]} 5. e5 {[%clk 0:02:45]}  Nfd7 {[%clk 0:02:59]} 6. h4 {[%clk 0:02:45]}  h6 {[%clk 0:02:59]} 7. Bxe7 {[%clk 0:02:44]}  Qxe7 {[%clk 0:03:00]} 8. Qg4 {[%clk 0:02:43]}  O-O {[%clk 0:02:59]} 9. Nh3 {[%clk 0:02:35]}  c5 {[%clk 0:02:56]} 10. Nb5 {[%clk 0:01:35]}  Nc6 {[%clk 0:02:53]} 11. O-O-O {[%clk 0:01:33]}  f6 {[%clk 0:02:46]} 12. Nf4 {[%clk 0:01:07]}  cxd4 {[%clk 0:02:21]} 13. Qxe6+ {[%clk 0:00:57]}  Qxe6 {[%clk 0:02:15]} 14. Nxe6 {[%clk 0:00:58]}  fxe5 {[%clk 0:02:12]} 15. Nxf8 {[%clk 0:00:58]}  Nxf8 {[%clk 0:02:13]} 16. Nc7 {[%clk 0:00:56]}  Rb8 {[%clk 0:02:09]} 17. Nxd5 {[%clk 0:00:57]}  Be6 {[%clk 0:01:59]} 18. Nc7 {[%clk 0:00:56]}  Bf7 {[%clk 0:01:56]} 19. Nb5 {[%clk 0:00:52]}  Nd7 {[%clk 0:01:28]} 20. Nd6 {[%clk 0:00:33]}  Nf6 {[%clk 0:01:11]} 21. Nxf7 {[%clk 0:00:28]}  Kxf7 {[%clk 0:01:12]} 22. f3 {[%clk 0:00:28]}  Ke7 {[%clk 0:00:59]} 23. Bb5 {[%clk 0:00:24]}  Nd5 {[%clk 0:00:48]} 24. Rhe1 {[%clk 0:00:21]}  Kf6 {[%clk 0:00:43]} 25. c3 {[%clk 0:00:18]}  Ne3 {[%clk 0:00:35]} 26. Rd2 {[%clk 0:00:17]}  Rc8 {[%clk 0:00:31]} 27. Bxc6 {[%clk 0:00:16]}  Rxc6 {[%clk 0:00:29]} 28. f4 {[%clk 0:00:10]}  dxc3 {[%clk 0:00:23]} 29. fxe5+ {[%clk 0:00:10]}  Ke7 {[%clk 0:00:19]} 30. Rd6 {[%clk 0:00:06]}  cxb2+ {[%clk 0:00:19]} 31. Kb1 {[%clk 0:00:06]}  Nc4 {[%clk 0:00:12]} 32. Rxc6 {[%clk 0:00:07]}  bxc6 {[%clk 0:00:12]} 33. e6 {[%clk 0:00:08]}  a5 {[%clk 0:00:09]} 34. Kc2 {[%clk 0:00:06]}  a4 {[%clk 0:00:08]} 35. Kc3 {[%clk 0:00:07]}  Ne3 {[%clk 0:00:04]} 36. Kxb2 {[%clk 0:00:05]}  Nxg2 {[%clk 0:00:03]} 37. Re4 {[%clk 0:00:06]}  g5 {[%clk 0:00:02]} 38. hxg5 {[%clk 0:00:06]}  hxg5 {[%clk 0:00:03]} 39. Rg4 {[%clk 0:00:07]}  Nf4 {[%clk 0:00:04]} 40. Rxg5 {[%clk 0:00:07]}  Nxe6 {[%clk 0:00:04]} 41. Ra5 {[%clk 0:00:07]}  Kd6 {[%clk 0:00:05]} 42. Rxa4 {[%clk 0:00:07]}  Nc5 {[%clk 0:00:05]} 43. Rh4 {[%clk 0:00:07]}  Kc7 {[%clk 0:00:05]} 44. Kc3 {[%clk 0:00:07]}  Kb6 {[%clk 0:00:05]} 45. Kc4 {[%clk 0:00:08]}  Nd7 {[%clk 0:00:05]} 46. Rh5 {[%clk 0:00:08]}  Nb8 {[%clk 0:00:04]} 47. a4 {[%clk 0:00:08]}  Nd7 {[%clk 0:00:04]} 48. a5+ {[%clk 0:00:08]}  Ka6 {[%clk 0:00:04]} 49. Kb4 {[%clk 0:00:09]}  Nb8 {[%clk 0:00:02]} 50. Rh7 {[%clk 0:00:08]}  c5+ {[%clk 0:00:01]} 51. Kxc5 {[%clk 0:00:08]}  Kxa5 {[%clk 0:00:02]} 52. Ra7+ {[%clk 0:00:08]}  Na6+ {[%clk 0:00:02]} 53. Kc6 {[%clk 0:00:09]}  Kb4 {[%clk 0:00:01]} 54. Rxa6 {[%clk 0:00:10]} 1-0


[Site "https://www.chess.com"]

[Event "Titled Tuesday Blitz March 07 Early 2023"]
[White "Hebden, Mark L"]
[Black "Oparin, Grigoriy"]
[WhiteFideId "400084"]
[BlackFideId "24125890"]
[WhiteElo "2436"]
[BlackElo "2641"]
[Result "0-1"]
[Round "01"]
[TimeControl "180+2"]
[Date "2023.03.07"]
[WhiteClock "0:00:59"]
[BlackClock "0:00:29"]

1. d4 {[%clk 0:02:56]}  Nf6 {[%clk 0:02:59]} 2. Nf3 {[%clk 0:02:56]}  e6 {[%clk 0:03:00]} 3. c3 {[%clk 0:02:55]}  d5 {[%clk 0:03:00]} 4. Bg5 {[%clk 0:02:55]}  Nbd7 {[%clk 0:02:58]} 5. Nbd2 {[%clk 0:02:55]}  h6 {[%clk 0:02:56]} 6. Bh4 {[%clk 0:02:53]}  Be7 {[%clk 0:02:56]} 7. e3 {[%clk 0:02:52]}  b6 {[%clk 0:02:56]} 8. Bb5 {[%clk 0:02:51]}  O-O {[%clk 0:02:47]} 9. Qa4 {[%clk 0:02:39]}  Bb7 {[%clk 0:02:30]} 10. Bxd7 {[%clk 0:02:31]}  Nxd7 {[%clk 0:02:30]} 11. Bxe7 {[%clk 0:02:30]}  Qxe7 {[%clk 0:02:31]} 12. O-O {[%clk 0:02:28]}  c5 {[%clk 0:02:30]} 13. Rfe1 {[%clk 0:02:26]}  Rfc8 {[%clk 0:02:29]} 14. Rad1 {[%clk 0:02:23]}  a5 {[%clk 0:02:26]} 15. e4 {[%clk 0:02:21]}  cxd4 {[%clk 0:02:18]} 16. Qxd4 {[%clk 0:02:19]}  dxe4 {[%clk 0:02:10]} 17. Nxe4 {[%clk 0:02:18]}  Bxe4 {[%clk 0:02:10]} 18. Qxd7 {[%clk 0:02:17]}  Qxd7 {[%clk 0:02:09]} 19. Rxd7 {[%clk 0:02:17]}  Bxf3 {[%clk 0:02:04]} 20. gxf3 {[%clk 0:02:17]}  Rc5 {[%clk 0:02:05]} 21. Red1 {[%clk 0:02:17]}  Rb5 {[%clk 0:02:02]} 22. b3 {[%clk 0:02:16]}  Rc5 {[%clk 0:01:38]} 23. c4 {[%clk 0:02:04]}  b5 {[%clk 0:01:37]} 24. cxb5 {[%clk 0:01:59]}  Rxb5 {[%clk 0:01:38]} 25. Rd8+ {[%clk 0:01:58]}  Rxd8 {[%clk 0:01:38]} 26. Rxd8+ {[%clk 0:01:58]}  Kh7 {[%clk 0:01:39]} 27. Ra8 {[%clk 0:01:57]}  g5 {[%clk 0:01:27]} 28. Kf1 {[%clk 0:01:54]}  Kg6 {[%clk 0:01:27]} 29. Ra7 {[%clk 0:01:54]}  f6 {[%clk 0:01:27]} 30. Ke2 {[%clk 0:01:54]}  h5 {[%clk 0:01:24]} 31. Kd3 {[%clk 0:01:53]}  h4 {[%clk 0:01:23]} 32. Kc4 {[%clk 0:01:51]}  Re5 {[%clk 0:01:23]} 33. a4 {[%clk 0:01:43]}  h3 {[%clk 0:01:19]} 34. Ra8 {[%clk 0:01:37]}  Re2 {[%clk 0:01:18]} 35. Rxa5 {[%clk 0:01:36]}  Rxf2 {[%clk 0:01:18]} 36. Ra8 {[%clk 0:01:35]}  Rxh2 {[%clk 0:01:17]} 37. Rh8 {[%clk 0:01:32]}  f5 {[%clk 0:01:08]} 38. a5 {[%clk 0:01:31]}  g4 {[%clk 0:01:08]} 39. fxg4 {[%clk 0:01:30]}  fxg4 {[%clk 0:01:09]} 40. b4 {[%clk 0:01:29]}  Kf5 {[%clk 0:01:01]} 41. b5 {[%clk 0:01:28]}  Ra2 {[%clk 0:01:00]} 42. a6 {[%clk 0:01:24]}  h2 {[%clk 0:00:56]} 43. Kb3 {[%clk 0:01:22]}  Ra5 {[%clk 0:00:30]} 44. Kb4 {[%clk 0:01:16]}  g3 {[%clk 0:00:29]} 45. Kxa5 {[%clk 0:01:15]}  g2 {[%clk 0:00:30]} 46. a7 {[%clk 0:01:12]}  g1=Q {[%clk 0:00:30]} 47. Rxh2 {[%clk 0:00:59]}  Qxa7+ {[%clk 0:00:29]} 0-1


[Site "https://www.chess.com"]

[Event "Titled Tuesday Blitz March 07 Early 2023"]
[White "Kramnik, Vladimir"]
[Black "Bernat, David"]
[WhiteFideId "4101588"]
[BlackFideId "2099225"]
[WhiteElo "2712"]
[BlackElo "2486"]
[Result "1-0"]
[Round "01"]
[TimeControl "180+2"]
[Date "2023.03.07"]
[WhiteClock "0:01:25"]
[BlackClock "0:00:44"]

1. Nf3 {[%clk 0:02:58]}  c5 {[%clk 0:02:59]} 2. b3 {[%clk 0:02:56]}  g6 {[%clk 0:03:00]} 3. Bb2 {[%clk 0:02:56]}  Nf6 {[%clk 0:03:00]} 4. c4 {[%clk 0:02:56]}  Bg7 {[%clk 0:03:01]} 5. g3 {[%clk 0:02:56]}  O-O {[%clk 0:03:01]} 6. Bg2 {[%clk 0:02:56]}  d5 {[%clk 0:03:02]} 7. cxd5 {[%clk 0:02:55]}  Nxd5 {[%clk 0:03:03]} 8. Bxg7 {[%clk 0:02:55]}  Kxg7 {[%clk 0:03:03]} 9. O-O {[%clk 0:02:55]}  Nc6 {[%clk 0:03:03]} 10. d4 {[%clk 0:02:55]}  cxd4 {[%clk 0:02:51]} 11. Nxd4 {[%clk 0:02:54]}  Nxd4 {[%clk 0:02:52]} 12. Qxd4+ {[%clk 0:02:54]}  Nf6 {[%clk 0:02:52]} 13. Qe3 {[%clk 0:02:54]}  Qb6 {[%clk 0:02:46]} 14. Qxb6 {[%clk 0:02:52]}  axb6 {[%clk 0:02:47]} 15. Nc3 {[%clk 0:02:51]}  Ra5 {[%clk 0:02:28]} 16. Rfd1 {[%clk 0:02:45]}  b5 {[%clk 0:02:28]} 17. b4 {[%clk 0:02:43]}  Ra6 {[%clk 0:02:23]} 18. Nxb5 {[%clk 0:02:39]}  Rb6 {[%clk 0:02:23]} 19. Nc3 {[%clk 0:02:18]}  Rxb4 {[%clk 0:02:22]} 20. Rab1 {[%clk 0:02:18]}  Rc4 {[%clk 0:02:11]} 21. Rb3 {[%clk 0:02:18]}  b6 {[%clk 0:02:05]} 22. Nd5 {[%clk 0:01:48]}  Nxd5 {[%clk 0:01:47]} 23. Bxd5 {[%clk 0:01:48]}  Rc2 {[%clk 0:01:47]} 24. Rxb6 {[%clk 0:01:45]}  Rd8 {[%clk 0:01:33]} 25. Rbb1 {[%clk 0:01:44]}  Rxe2 {[%clk 0:01:25]} 26. a4 {[%clk 0:01:44]}  Bf5 {[%clk 0:01:16]} 27. Bc4 {[%clk 0:01:33]}  Rxd1+ {[%clk 0:01:15]} 28. Rxd1 {[%clk 0:01:33]}  Rc2 {[%clk 0:01:04]} 29. Bd5 {[%clk 0:01:33]}  Bh3 {[%clk 0:00:55]} 30. Ra1 {[%clk 0:01:31]}  Rc5 {[%clk 0:00:54]} 31. Bg2 {[%clk 0:01:30]}  Bxg2 {[%clk 0:00:54]} 32. Kxg2 {[%clk 0:01:30]}  Ra5 {[%clk 0:00:54]} 33. Kf3 {[%clk 0:01:30]}  Kf6 {[%clk 0:00:55]} 34. Ke4 {[%clk 0:01:30]}  e5 {[%clk 0:00:54]} 35. Kd3 {[%clk 0:01:27]}  Kf5 {[%clk 0:00:53]} 36. Kc4 {[%clk 0:01:26]}  Ke4 {[%clk 0:00:51]} 37. Ra3 {[%clk 0:01:26]}  f5 {[%clk 0:00:44]} 38. f3# {[%clk 0:01:25]} 1-0


[Site "https://www.chess.com"]

[Event "Titled Tuesday Blitz March 07 Early 2023"]
[White "Manukian, Artak"]
[Black "Bok, Benjamin"]
[WhiteFideId "13301373"]
[BlackFideId "1017063"]
[WhiteElo "2130"]
[BlackElo "2658"]
[Result "0-1"]
[Round "01"]
[TimeControl "180+2"]
[Date "2023.03.07"]
[WhiteClock "0:01:17"]
[BlackClock "0:00:32"]

1. e4 {[%clk 0:03:00]}  c5 {[%clk 0:02:59]} 2. Nf3 {[%clk 0:03:00]}  d6 {[%clk 0:03:00]} 3. Bb5+ {[%clk 0:03:00]}  Nd7 {[%clk 0:02:59]} 4. O-O {[%clk 0:02:59]}  a6 {[%clk 0:02:59]} 5. Bd3 {[%clk 0:02:59]}  Ngf6 {[%clk 0:02:59]} 6. Re1 {[%clk 0:02:59]}  e6 {[%clk 0:02:59]} 7. c3 {[%clk 0:02:59]}  Be7 {[%clk 0:03:00]} 8. Bc2 {[%clk 0:02:59]}  b5 {[%clk 0:03:01]} 9. a4 {[%clk 0:02:56]}  Bb7 {[%clk 0:03:00]} 10. d4 {[%clk 0:02:56]}  cxd4 {[%clk 0:02:57]} 11. cxd4 {[%clk 0:02:57]}  O-O {[%clk 0:02:57]} 12. e5 {[%clk 0:02:55]}  dxe5 {[%clk 0:02:46]} 13. dxe5 {[%clk 0:02:56]}  Nd5 {[%clk 0:02:46]} 14. Nbd2 {[%clk 0:02:54]}  Nc5 {[%clk 0:02:14]} 15. Qe2 {[%clk 0:02:52]}  Nb4 {[%clk 0:01:55]} 16. Bb1 {[%clk 0:02:44]}  Ncd3 {[%clk 0:01:50]} 17. Rd1 {[%clk 0:02:43]}  Rc8 {[%clk 0:01:49]} 18. Bxd3 {[%clk 0:02:41]}  Qxd3 {[%clk 0:01:46]} 19. Qxd3 {[%clk 0:02:39]}  Nxd3 {[%clk 0:01:47]} 20. axb5 {[%clk 0:02:35]}  axb5 {[%clk 0:01:22]} 21. Nf1 {[%clk 0:02:32]}  Rfd8 {[%clk 0:01:14]} 22. Bg5 {[%clk 0:02:16]}  Bxg5 {[%clk 0:01:03]} 23. Nxg5 {[%clk 0:02:17]}  h6 {[%clk 0:00:58]} 24. Nf3 {[%clk 0:02:05]}  Bxf3 {[%clk 0:00:57]} 25. gxf3 {[%clk 0:02:05]}  Nxe5 {[%clk 0:00:56]} 26. Rxd8+ {[%clk 0:02:03]}  Rxd8 {[%clk 0:00:57]} 27. Kg2 {[%clk 0:02:03]}  Nd3 {[%clk 0:00:56]} 28. Ne3 {[%clk 0:01:58]}  Nxb2 {[%clk 0:00:52]} 29. Rb1 {[%clk 0:01:58]}  Rd2 {[%clk 0:00:52]} 30. Nf1 {[%clk 0:01:57]}  Re2 {[%clk 0:00:52]} 31. Ng3 {[%clk 0:01:57]}  Rc2 {[%clk 0:00:52]} 32. Ne4 {[%clk 0:01:57]}  f5 {[%clk 0:00:46]} 33. Nd6 {[%clk 0:01:55]}  b4 {[%clk 0:00:46]} 34. Nb5 {[%clk 0:01:56]}  Nd3 {[%clk 0:00:45]} 35. Nd4 {[%clk 0:01:52]}  Rxf2+ {[%clk 0:00:45]} 36. Kg1 {[%clk 0:01:52]}  Rb2 {[%clk 0:00:42]} 37. Rxb2 {[%clk 0:01:36]}  Nxb2 {[%clk 0:00:43]} 38. Nxe6 {[%clk 0:01:36]}  Kf7 {[%clk 0:00:39]} 39. Nd4 {[%clk 0:01:35]}  Kf6 {[%clk 0:00:39]} 40. Kf2 {[%clk 0:01:33]}  Nc4 {[%clk 0:00:38]} 41. f4 {[%clk 0:01:30]}  g5 {[%clk 0:00:37]} 42. Kg3 {[%clk 0:01:28]}  Nd2 {[%clk 0:00:34]} 43. Kf2 {[%clk 0:01:17]}  b3 {[%clk 0:00:32]} 0-1


[Site "https://www.chess.com"]